bitfinex-derivatives/quotes_BTCF0:USTF0_20250806
["timestamp","ask_amount","ask_price","bid_price","bid_amount"]
[1754440969230,1.98730097,114020.0,114010.0,0.1754304]
[1754440969528,1.682441,114020.0,114010.0,0.1754304]
[1754440969726,1.98630097,114020.0,114010.0,0.1754304]
[1754440970031,1.98730097,114020.0,114010.0,0.1774304]
[1754440971032,1.98730097,114020.0,114010.0,0.2006504]
[1754440971327,0.73166997,114020.0,114010.0,0.1774304]
[1754440971532,1.33642997,114020.0,114010.0,0.2958504]
[1754440971723,0.42481,114020.0,114010.0,0.2958504]
[1754440971924,1.03257,114020.0,114010.0,0.2958504]
[1754440972827,1.03157,114020.0,114010.0,0.2958504]
[1754440973029,1.33642997,114020.0,114010.0,0.2958504]
[1754440973427,1.33642997,114020.0,114010.0,0.2478204]
[1754440973633,1.51184497,114020.0,114010.0,0.2006504]
[1754440974528,1.33642997,114020.0,114010.0,0.2006504]
[1754440974936,1.51184497,114020.0,114010.0,0.2006504]
[1754440976734,1.51184497,114020.0,114010.0,0.4635504]
[1754440979635,1.03157,114020.0,114010.0,0.4635504]
[1754440979833,1.33642997,114020.0,114010.0,0.5566404]
[1754440981935,1.03157,114020.0,114010.0,0.5566404]
[1754440982436,1.03157,114020.0,114010.0,0.5576404]
[1754440982643,1.03057,114020.0,114010.0,0.5576404]
[1754440982834,1.51084517,114020.0,114010.0,0.5576404]
[1754440983034,1.51084517,114020.0,114010.0,0.4413304]
[1754440983234,1.33542997,114020.0,114010.0,0.4641804]
[1754440983540,1.33542997,114020.0,114010.0,0.5592704]
[1754440984337,1.33442997,114020.0,114010.0,0.4661804]
[1754440985238,1.33542997,114020.0,114010.0,0.5373104]
[1754440985541,1.33442997,114020.0,114010.0,0.5552704]
[1754440987644,1.50984517,114020.0,114010.0,0.4621804]
[1754440987845,1.50984517,114020.0,114010.0,0.4393304]
[1754440988442,1.50984517,114020.0,114010.0,0.4621804]
[1754440988840,1.50984517,114020.0,114010.0,0.4393304]
[1754440989743,1.50984517,114020.0,114010.0,0.4621804]
[1754440990939,1.50984517,114020.0,114010.0,0.4393304]
[1754440991432,1.50984517,114020.0,114010.0,0.2639]
[1754440992943,1.68526117,114020.0,114010.0,0.2639]
[1754440993745,1.68726117,114020.0,114010.0,0.2639]
[1754440994442,1.75941681,114020.0,114010.0,0.2629]
[1754440994644,0.1754305,114010.0,114000.0,0.2860047]
[1754440994844,0.84109047,114010.0,114000.0,0.2860047]
[1754440997447,0.84309047,114010.0,114000.0,0.2860047]
[1754440998345,0.84309047,114010.0,114000.0,0.2870047]
[1754440998946,0.84309047,114010.0,114000.0,0.3581347]
[1754440999148,0.5382305,114010.0,114000.0,0.3800947]
[1754440999348,0.66765997,114010.0,114000.0,0.3800947]
[1754440999549,1.27237997,114010.0,114000.0,0.3800947]
[1754441000344,0.3628,114010.0,114000.0,0.3800947]
[1754441000551,0.3628,114010.0,114000.0,0.6429947]
[1754441000739,0.96752,114010.0,114000.0,0.6429947]
[1754441001346,1.27237997,114010.0,114000.0,0.6429947]
[1754441001548,1.27137997,114010.0,114000.0,0.6439947]
[1754441002047,1.44681047,114010.0,114000.0,0.6419947]
[1754441002351,1.44681047,114010.0,114000.0,0.5529047]
[1754441002851,1.44681047,114010.0,114000.0,0.6495847]
[1754441005443,1.27137997,114010.0,114000.0,0.6495847]
[1754441005848,1.44681057,114010.0,114000.0,0.6495847]
[1754441008656,1.44581057,114010.0,114000.0,0.6475847]
[1754441008957,1.27037997,114010.0,114000.0,0.6475847]
[1754441009959,1.27137997,114010.0,114000.0,0.6475847]
[1754441011060,0.66665997,114010.0,114000.0,0.6475847]
[1754441011358,1.27137997,114010.0,114000.0,0.6475847]
[1754441011553,0.3618,114010.0,114000.0,0.6475847]
[1754441011761,0.96652,114010.0,114000.0,0.6475847]
[1754441016559,0.3618,114010.0,114000.0,0.6475847]
[1754441016756,0.96652,114010.0,114000.0,0.6475847]
[1754441017154,1.27137997,114010.0,114000.0,0.6475847]
[1754441021667,1.27137997,114010.0,114000.0,0.8053276]
[1754441023365,0.96652,114010.0,114000.0,0.8053276]
[1754441023869,0.96652,114010.0,114000.0,0.8063276]
[1754441024173,0.96552,114010.0,114000.0,0.8063276]
[1754441024473,1.27037997,114010.0,114000.0,0.8063276]
[1754441025166,1.27037997,114010.0,114000.0,0.8043276]
[1754441027169,1.27037997,114010.0,114000.0,0.6847976]
[1754441027368,1.27137997,114010.0,114000.0,0.8050076]
[1754441027672,0.66665997,114010.0,114000.0,0.8060076]
[1754441027868,1.27129997,114010.0,114000.0,0.8060076]
[1754441028075,1.27329997,114010.0,114000.0,0.8050076]
[1754441028770,1.27229997,114010.0,114000.0,0.8050076]
[1754441029068,1.27329997,114010.0,114000.0,0.8050076]
[1754441029269,0.96844,114010.0,114000.0,0.8050076]
[1754441029469,1.27329997,114010.0,114000.0,0.8050076]
[1754441030277,1.27229997,114010.0,114000.0,0.8050076]
[1754441030467,1.27329997,114010.0,114000.0,0.8050076]
[1754441030670,1.27129997,114010.0,114000.0,0.8050076]
[1754441030964,1.27129997,114010.0,114000.0,0.8060076]
[1754441031265,1.27029997,114010.0,114000.0,0.8060076]
[1754441031474,1.44573047,114010.0,114000.0,0.8060076]
[1754441031775,1.44573047,114010.0,114000.0,0.8050076]
[1754441031976,1.44773047,114010.0,114000.0,0.8050076]
[1754441032173,1.27229997,114010.0,114000.0,0.8050076]
[1754441032577,0.66765997,114010.0,114000.0,0.8050076]
[1754441032778,1.27229997,114010.0,114000.0,0.8050076]
[1754441034877,1.27129997,114010.0,114000.0,0.8050076]
[1754441035177,1.27229997,114010.0,114000.0,0.8050076]
[1754441035568,1.27129997,114010.0,114000.0,0.8060076]
[1754441035773,0.84209047,114010.0,114000.0,0.8060076]
[1754441035973,1.44669047,114010.0,114000.0,0.8060076]
[1754441036174,0.84209047,114010.0,114000.0,0.8060076]
[1754441036380,1.44669047,114010.0,114000.0,0.8060076]
[1754441036983,1.08489047,114010.0,114000.0,0.8060076]
[1754441037182,1.80649047,114010.0,114000.0,0.8060076]
[1754441037686,1.80649047,114010.0,114000.0,0.7573776]
[1754441037891,1.80649047,114010.0,114000.0,0.5515847]
[1754441039187,1.80749047,114010.0,114000.0,0.5505847]
[1754441039692,1.80849047,114010.0,114000.0,0.5505847]
[1754441039988,1.80849057,114010.0,114000.0,0.6469747]
[1754441040894,1.63305997,114010.0,114000.0,0.6469747]
[1754441041094,1.3282,114010.0,114000.0,0.6469747]
[1754441041293,1.63305997,114010.0,114000.0,0.6469747]
[1754441042393,1.02845997,114010.0,114000.0,0.6469747]
[1754441042590,0.7236,114010.0,114000.0,0.6469747]
[1754441042796,1.32816,114010.0,114000.0,0.6469747]
[1754441044289,1.32716,114010.0,114000.0,0.6469747]
[1754441044496,1.32816,114010.0,114000.0,0.6469747]
[1754441044988,1.32716,114010.0,114000.0,0.6479747]
[1754441046798,1.63201997,114010.0,114000.0,0.6479747]
[1754441046990,1.63101997,114010.0,114000.0,0.6479747]
[1754441048293,1.63101997,114010.0,114000.0,0.8057176]
[1754441055801,1.80645037,114010.0,114000.0,0.7567376]
[1754441056098,1.80645037,114010.0,114000.0,0.7345776]
[1754441057101,1.80745037,114010.0,114000.0,0.7345776]
[1754441058301,1.80845037,114010.0,114000.0,0.7335776]
[1754441060503,1.80845037,114010.0,114000.0,0.7083276]
[1754441060895,1.80845037,114010.0,114000.0,0.6837976]
[1754441061503,1.80845037,114010.0,114000.0,0.7073576]
[1754441061909,1.80745037,114010.0,114000.0,0.7073576]
[1754441062203,1.80845037,114010.0,114000.0,0.7073576]
[1754441062697,1.80745037,114010.0,114000.0,0.7073576]
[1754441062898,1.80845037,114010.0,114000.0,0.7073576]
[1754441063404,1.80845037,114010.0,114000.0,0.8033776]
[1754441066006,1.08685037,114010.0,114000.0,0.8033776]
[1754441066201,1.80845037,114010.0,114000.0,0.8033776]
[1754441066398,1.63301997,114010.0,114000.0,0.8033776]
[1754441067202,0.7236,114010.0,114000.0,0.8033776]
[1754441067506,1.32808,114010.0,114000.0,0.8033776]
[1754441068509,0.7236,114010.0,114000.0,0.8033776]
[1754441068705,1.32808,114010.0,114000.0,0.8033776]
[1754441068905,1.32708,114010.0,114000.0,0.8033776]
[1754441069410,1.32608,114010.0,114000.0,0.8033776]
[1754441069808,1.5015106,114010.0,114000.0,0.8043776]
[1754441070711,1.80637057,114010.0,114000.0,0.8043776]
[1754441071210,1.80737057,114010.0,114000.0,0.8043776]
[1754441071611,1.80737057,114010.0,114000.0,0.8033776]
[1754441073412,1.08577057,114010.0,114000.0,0.8033776]
[1754441073611,1.80737057,114010.0,114000.0,0.8033776]
[1754441073913,1.63193997,114010.0,114000.0,0.8033776]
[1754441075912,1.63193997,114010.0,114000.0,0.8043776]
[1754441078217,1.63093997,114010.0,114000.0,0.8043776]
[1754441078515,0.7216,114010.0,114000.0,0.8043776]
[1754441078816,1.326,114010.0,114000.0,0.8043776]
[1754441079214,0.7216,114010.0,114000.0,0.8043776]
[1754441079416,1.63085997,114010.0,114000.0,0.8043776]
[1754441082422,1.80629047,114010.0,114000.0,0.7083576]
[1754441083017,1.80629047,114010.0,114000.0,0.7421876]
[1754441083321,1.80629047,114010.0,114000.0,0.8043776]
[1754441083920,1.80629047,114010.0,114000.0,0.6466347]
[1754441084121,1.326,114010.0,114000.0,0.6466347]
[1754441084319,1.63085997,114010.0,114000.0,0.6466347]
[1754441084822,1.63185997,114010.0,114000.0,0.6456347]
[1754441085423,1.63085997,114010.0,114000.0,0.8033776]
[1754441085624,1.63185997,114010.0,114000.0,0.8033776]
[1754441086020,1.63185997,114010.0,114000.0,0.8043776]
[1754441087227,1.63085997,114010.0,114000.0,0.8043776]
[1754441087626,0.90925997,114010.0,114000.0,0.8043776]
[1754441087828,1.63085997,114010.0,114000.0,0.8043776]
[1754441089227,1.326,114010.0,114000.0,0.8043776]
[1754441089429,1.63085997,114010.0,114000.0,0.8043776]
[1754441090332,1.02645997,114010.0,114000.0,0.8043776]
[1754441090546,0.7216,114010.0,114000.0,0.8043776]
[1754441090831,1.326,114010.0,114000.0,0.8043776]
[1754441091232,0.7216,114010.0,114000.0,0.8043776]
[1754441091435,1.326,114010.0,114000.0,0.8043776]
[1754441091629,1.63085997,114010.0,114000.0,0.8043776]
[1754441095927,0.90925997,114010.0,114000.0,0.8043776]
[1754441096135,1.27005997,114010.0,114000.0,0.8043776]
[1754441096338,0.9652,114010.0,114000.0,0.8043776]
[1754441097232,0.3608,114010.0,114000.0,0.8043776]
[1754441097529,1.27001997,114010.0,114000.0,0.8043776]
[1754441098639,1.27001997,114010.0,114000.0,0.8035776]
[1754441100541,1.44545047,114010.0,114000.0,0.7553276]
[1754441100939,1.44545047,114010.0,114000.0,0.8030376]
[1754441101445,1.27001997,114010.0,114000.0,0.8030376]
[1754441101645,1.44545047,114010.0,114000.0,0.8030376]
[1754441102143,1.44545047,114010.0,114000.0,0.7795376]
[1754441102341,1.27001997,114010.0,114000.0,0.8030376]
[1754441103653,1.44545047,114010.0,114000.0,0.8030376]
[1754441105647,1.27001997,114010.0,114000.0,0.8030376]
[1754441106546,0.96516,114010.0,114000.0,0.8030376]
[1754441106840,1.27001997,114010.0,114000.0,0.8030376]
[1754441108944,0.96516,114010.0,114000.0,0.8030376]
[1754441109143,1.27001997,114010.0,114000.0,0.8030376]
[1754441113747,1.63081997,114010.0,114000.0,0.8030376]
[1754441114649,1.66899261,114010.0,114000.0,0.8030376]
[1754441116550,1.84442311,114010.0,114000.0,0.8030376]
[1754441117453,1.66899261,114010.0,114000.0,0.8030376]
[1754441117649,0.94739261,114010.0,114000.0,0.8030376]
[1754441117852,1.66899261,114010.0,114000.0,0.8030376]
[1754441118152,1.84442301,114010.0,114000.0,0.8030376]
[1754441118352,1.66899261,114010.0,114000.0,0.8030376]
[1754441119257,1.84442301,114010.0,114000.0,0.8030376]
[1754441120555,1.66899261,114010.0,114000.0,0.8030376]
[1754441121960,1.84442321,114010.0,114000.0,0.8030376]
[1754441122151,1.66899261,114010.0,114000.0,0.8030376]
[1754441125161,1.32596,114010.0,114000.0,0.8030376]
[1754441125362,1.66899261,114010.0,114000.0,0.8030376]
[1754441125759,1.66899261,114010.0,114000.0,0.6452947]
[1754441128958,1.30819261,114010.0,114000.0,0.6452947]
[1754441132672,1.48362311,114010.0,114000.0,0.78885299]
[1754441133163,1.82665572,114010.0,114000.0,0.68503299]
[1754441133368,1.82665572,114010.0,114000.0,0.64117169]
[1754441133566,1.82665572,114010.0,114000.0,0.4831934]
[1754441133968,1.82665572,114010.0,114000.0,0.5059434]
[1754441134771,1.82765572,114010.0,114000.0,0.5059434]
[1754441135273,1.82865572,114010.0,114000.0,0.5049434]
[1754441135676,1.31039261,114010.0,114000.0,0.94442601]
[1754441135874,0.70583261,114010.0,114000.0,0.94442601]
[1754441136177,1.31059261,114010.0,114000.0,0.6013934]
[1754441136674,1.27245269,114010.0,114000.0,0.6013934]
[1754441136868,1.27145269,114010.0,114000.0,0.6013934]
[1754441137069,1.27045269,114010.0,114000.0,0.6023934]
[1754441137876,1.27045269,114010.0,114000.0,0.6043934]
[1754441138874,1.44588339,114010.0,114000.0,0.6043934]
[1754441139080,1.44588339,114010.0,114000.0,0.5325934]
[1754441139272,1.44588339,114010.0,114000.0,0.5079434]
[1754441139774,1.44588339,114010.0,114000.0,0.5069434]
[1754441140579,1.44688339,114010.0,114000.0,0.5069434]
[1754441140776,1.27145269,114010.0,114000.0,0.5546034]
[1754441140974,1.27145269,114010.0,114000.0,0.6033934]
[1754441141174,0.66669269,114010.0,114000.0,0.6033934]
[1754441141375,1.27341269,114010.0,114000.0,0.6033934]
[1754441141978,1.27341269,114010.0,114000.0,0.6023934]
[1754441142179,1.27341269,114010.0,114000.0,0.5305934]
[1754441142568,1.27341269,114010.0,114000.0,0.6023934]
[1754441142771,1.44884339,114010.0,114000.0,0.5059434]
[1754441143279,1.44784339,114010.0,114000.0,0.5059434]
[1754441143481,1.44884339,114010.0,114000.0,0.5049434]
[1754441143680,1.44884339,114010.0,114000.0,0.5390234]
[1754441143988,1.44884339,114010.0,114000.0,0.5049434]
[1754441144279,1.44984339,114010.0,114000.0,0.66292169]
[1754441145883,1.44984339,114010.0,114000.0,0.75937169]
[1754441146789,1.27441269,114010.0,114000.0,0.75937169]
[1754441147387,1.44984329,114010.0,114000.0,0.75937169]
[1754441149692,1.44984329,114010.0,114000.0,0.6013934]
[1754441150389,1.44984329,114010.0,114000.0,0.2629]
[1754441150593,1.44884329,114010.0,114000.0,0.438346]
[1754441150892,1.44984329,114010.0,114000.0,0.461096]
[1754441154397,1.44984329,114010.0,114000.0,0.02275]
[1754441154590,1.675446,114000.0,113990.0,0.5503276]
[1754441154789,2.34113869,114000.0,113990.0,0.5503276]
[1754441154992,2.64603138,114000.0,113990.0,0.6437976]
[1754441155691,2.34113869,114000.0,113990.0,0.6437976]
[1754441155892,2.34113869,114000.0,113990.0,0.6447976]
[1754441156893,2.34113869,114000.0,113990.0,0.6437976]
[1754441157093,2.34313869,114000.0,113990.0,0.6437976]
[1754441157595,2.34113869,114000.0,113990.0,0.6437976]
[1754441157898,2.64603138,114000.0,113990.0,0.5966076]
[1754441158385,2.34113869,114000.0,113990.0,0.5867976]
[1754441158590,2.34113869,114000.0,113990.0,0.462599]
[1754441158993,2.64603138,114000.0,113990.0,0.462599]
[1754441159193,2.64603138,114000.0,113990.0,0.438349]
[1754441159398,2.64603138,114000.0,113990.0,0.462599]
[1754441159599,2.64603138,114000.0,113990.0,0.2629]
[1754441160499,2.64603138,114000.0,113990.0,0.4626114]
[1754441161200,2.64603138,114000.0,113990.0,0.28715]
[1754441161406,2.64803138,114000.0,113990.0,0.28715]
[1754441162094,2.64903138,114000.0,113990.0,0.28715]
[1754441163303,2.64903138,114000.0,113990.0,0.02425]
[1754441167197,3.00983138,114000.0,113990.0,0.02425]
[1754441167401,1.50983138,114000.0,113990.0,0.1997115]
[1754441167895,1.50983138,114000.0,113990.0,0.02425]
[1754441168691,1.50983138,114000.0,113990.0,0.1997114]
[1754441169090,1.50983138,114000.0,113990.0,0.02425]
[1754441169806,0.1754614,113990.0,113980.0,0.2629]
[1754441170005,0.1754768,113980.0,113970.0,0.28715]
[1754441170202,0.84116949,113980.0,113970.0,0.02425]
[1754441171808,0.84116949,113980.0,113970.0,0.02525]
[1754441172408,0.84116949,113980.0,113970.0,0.02625]
[1754441173207,0.84116949,113980.0,113970.0,0.02525]
[1754441173408,0.84116949,113980.0,113970.0,0.02425]
[1754441173608,0.84116949,113980.0,113970.0,0.1997422]
[1754441173804,0.85013997,113980.0,113970.0,0.2932122]
[1754441174612,0.85213997,113980.0,113970.0,0.2932122]
[1754441174910,0.85313997,113980.0,113970.0,0.2932122]
[1754441177012,0.85113997,113980.0,113970.0,0.2932122]
[1754441177202,0.85313997,113980.0,113970.0,0.2932122]
[1754441177607,0.85113997,113980.0,113970.0,0.07053]
[1754441177812,0.85113997,113980.0,113970.0,0.02425]
[1754441179310,0.85013997,113980.0,113970.0,0.02425]
[1754441179501,0.85113997,113980.0,113970.0,0.02425]
[1754441179701,0.1754923,113970.0,113960.0,0.2898992]
[1754441179902,1.44938499,113970.0,113960.0,0.5999892]
[1754441185807,1.1444923,113970.0,113960.0,0.5999892]
[1754441186009,1.44938499,113970.0,113960.0,0.5999892]
[1754441187915,1.1444923,113970.0,113960.0,0.5999892]
[1754441188214,1.44938499,113970.0,113960.0,0.5999892]
[1754441190021,1.44938499,113970.0,113960.0,0.28715]
[1754441190222,1.75427768,113970.0,113960.0,0.28715]
[1754441191118,1.44938499,113970.0,113960.0,0.28715]
[1754441193523,1.44938499,113970.0,113960.0,0.2629]
[1754441193715,1.44938499,113970.0,113960.0,0.28775]
[1754441195219,1.75427768,113970.0,113960.0,0.02485]
[1754441195712,0.1755076,113960.0,113950.0,0.36712]
[1754441195919,1.14609298,113960.0,113950.0,0.28775]
[1754441196228,1.14609298,113960.0,113950.0,0.2629]
[1754441196420,0.1755384,113940.0,113930.0,0.33351879]
[1754441196721,1.81067109,113940.0,113930.0,0.02485]
[1754441197323,0.1755539,113930.0,113920.0,0.02485]
[1754441197523,1.14613928,113930.0,113920.0,0.02485]
[1754441197723,1.14613928,113930.0,113920.0,0.2004193]
[1754441198024,1.14613928,113930.0,113920.0,0.2725693]
[1754441198323,0.84124659,113930.0,113920.0,0.2938393]
[1754441200111,0.84124659,113930.0,113920.0,0.11827]
[1754441200316,0.84124659,113930.0,113920.0,0.2938392]
[1754441202913,0.84124659,113930.0,113920.0,0.02485]
[1754441203122,0.84124659,113930.0,113920.0,0.2004193]
[1754441203826,0.84124659,113930.0,113920.0,0.02485]
[1754441204031,1.6755693,113920.0,113910.0,0.2938547]
[1754441204231,3.25511468,113920.0,113910.0,0.07166]
[1754441205222,3.25611468,113920.0,113910.0,0.2004347]
[1754441205423,3.25611468,113920.0,113910.0,0.2938547]
[1754441205728,3.26011468,113920.0,113910.0,0.2938547]
[1754441206121,3.26011468,113920.0,113910.0,0.11827]
[1754441206821,3.25611468,113920.0,113910.0,0.07764]
[1754441207028,3.25511468,113920.0,113910.0,0.2780747]
[1754441207228,3.25511468,113920.0,113910.0,0.10249]
[1754441207424,3.25511468,113920.0,113910.0,0.05588]
[1754441207637,3.25511468,113920.0,113910.0,0.02485]
[1754441208332,0.1755847,113910.0,113900.0,0.5567701]
[1754441208530,0.8500179,113910.0,113900.0,0.28775]
[1754441208924,0.8500179,113910.0,113900.0,0.4633501]
[1754441209118,0.8500179,113910.0,113900.0,0.5427201]
[1754441209320,1.4596179,113910.0,113900.0,0.5567701]
[1754441209528,1.15472521,113910.0,113900.0,0.5577701]
[1754441209731,1.4596179,113910.0,113900.0,0.5577701]
[1754441209929,1.4596179,113910.0,113900.0,0.38217]
[1754441210232,1.15472521,113910.0,113900.0,0.38217]
[1754441210532,1.4596179,113910.0,113900.0,0.38217]
[1754441211136,1.4606179,113910.0,113900.0,0.38117]
[1754441211336,1.4606179,113910.0,113900.0,0.33456]
[1754441211830,1.4606179,113910.0,113900.0,0.2629]
[1754441212034,1.4606179,113910.0,113900.0,0.28737]
[1754441212232,0.1756155,113890.0,113880.0,0.2483101]
[1754441212424,1.45242819,113890.0,113880.0,0.2951509]
[1754441212622,1.45342819,113890.0,113880.0,0.2951509]
[1754441213030,1.81422819,113890.0,113880.0,0.2951509]
[1754441213735,1.81522819,113890.0,113880.0,0.2961509]
[1754441214229,1.81522819,113890.0,113880.0,0.12052]
[1754441214427,1.81422819,113890.0,113880.0,0.2971509]
[1754441215735,1.81422819,113890.0,113880.0,0.2961509]
[1754441216634,1.02649269,113890.0,113880.0,0.2961509]
[1754441216828,1.81446819,113890.0,113880.0,0.2951509]
[1754441217028,1.81446819,113890.0,113880.0,0.2961509]
[1754441217234,1.20210819,113890.0,113880.0,0.2961509]
[1754441217436,1.81446819,113890.0,113880.0,0.2961509]
[1754441218738,1.81446819,113890.0,113880.0,0.12052]
[1754441219133,1.81446819,113890.0,113880.0,0.02547]
[1754441219333,1.81446819,113890.0,113880.0,0.4640009]
[1754441219837,1.81446819,113890.0,113880.0,0.5234409]
[1754441220033,1.81446819,113890.0,113880.0,0.5590509]
[1754441220232,1.64229269,113890.0,113880.0,0.5580509]
[1754441220536,1.64221269,113890.0,113880.0,0.5580509]
[1754441221140,1.81782819,113890.0,113880.0,0.5580509]
[1754441221334,1.81682819,113890.0,113880.0,0.5580509]
[1754441221742,1.20410819,113890.0,113880.0,0.5580509]
[1754441221933,1.81698819,113890.0,113880.0,0.5580509]
[1754441222134,1.81498819,113890.0,113880.0,0.5580509]
[1754441223235,1.81498819,113890.0,113880.0,0.5590509]
[1754441223441,1.63937269,113890.0,113880.0,0.5590509]
[1754441224041,1.81498819,113890.0,113880.0,0.5590509]
[1754441224231,0.8972155,113890.0,113880.0,0.5590509]
[1754441224425,1.81482819,113890.0,113880.0,0.5580509]
[1754441224830,1.20210819,113890.0,113880.0,0.5580509]
[1754441225040,1.5098555,113890.0,113880.0,0.5580509]
[1754441225237,1.81474819,113890.0,113880.0,0.5580509]
[1754441226037,1.81482819,113890.0,113880.0,0.5580509]
[1754441226240,1.81482819,113890.0,113880.0,0.29714]
[1754441226450,1.81482819,113890.0,113880.0,0.2629]
[1754441226451,1.5099355,113890.0,113880.0,0.2629]
[1754441226638,2.11972088,113890.0,113880.0,0.2629]
[1754441227443,1.81482819,113890.0,113880.0,0.2629]
[1754441227644,1.82326819,113890.0,113880.0,0.2629]
[1754441227844,1.82326819,113890.0,113880.0,0.28737]
[1754441228340,1.3432,113890.0,113880.0,0.4630009]
[1754441228545,1.64809269,113890.0,113880.0,0.5580509]
[1754441228745,1.65009269,113890.0,113880.0,0.5580509]
[1754441229044,1.65029269,113890.0,113880.0,0.5580509]
[1754441229343,1.82690819,113890.0,113880.0,0.5580509]
[1754441229541,1.82690819,113890.0,113880.0,0.38242]
[1754441229740,1.82690819,113890.0,113880.0,0.36879]
[1754441230042,1.82390819,113890.0,113880.0,0.36879]
[1754441230242,1.82390819,113890.0,113880.0,0.36979]
[1754441231039,1.82438819,113890.0,113880.0,0.36979]
[1754441231240,1.82438819,113890.0,113880.0,0.28837]
[1754441231547,1.82438819,113890.0,113880.0,0.4640009]
[1754441231740,1.82438819,113890.0,113880.0,0.4972009]
[1754441232047,1.82438819,113890.0,113880.0,0.32157]
[1754441232438,1.82638819,113890.0,113880.0,0.32157]
[1754441233348,1.82638819,113890.0,113880.0,0.4972009]
[1754441233547,1.82638819,113890.0,113880.0,0.5370709]
[1754441233847,1.82638819,113890.0,113880.0,0.5590509]
[1754441234046,1.65077269,113890.0,113880.0,0.5590509]
[1754441234241,1.82638819,113890.0,113880.0,0.5590509]
[1754441235245,1.82638819,113890.0,113880.0,0.38342]
[1754441235440,1.82638819,113890.0,113880.0,0.32824]
[1754441237449,1.5214955,113890.0,113880.0,0.5038709]
[1754441237747,1.82638819,113890.0,113880.0,0.5038709]
[1754441238246,1.5214955,113890.0,113880.0,0.5038709]
[1754441238454,1.65293269,113890.0,113880.0,0.5038709]
[1754441238853,1.65093269,113890.0,113880.0,0.5038709]
[1754441239254,1.02649269,113890.0,113880.0,0.5038709]
[1754441239448,1.3464,113890.0,113880.0,0.5038709]
[1754441239650,1.65129269,113890.0,113880.0,0.5038709]
[1754441239850,1.82690819,113890.0,113880.0,0.5028709]
[1754441240754,1.82690819,113890.0,113880.0,0.4902409]
[1754441241251,1.82690819,113890.0,113880.0,0.4640009]
[1754441241440,1.82690819,113890.0,113880.0,0.28837]
[1754441241645,1.82690819,113890.0,113880.0,0.2011009]
[1754441241946,1.89591288,113890.0,113880.0,0.2011009]
[1754441242149,1.89755288,113890.0,113880.0,0.2011009]
[1754441243152,1.89955288,113890.0,113880.0,0.2011009]
[1754441243348,1.59466019,113890.0,113880.0,0.2001009]
[1754441243541,1.89955288,113890.0,113880.0,0.2001009]
[1754441243854,1.89955288,113890.0,113880.0,0.2350809]
[1754441244756,1.89955288,113890.0,113880.0,0.2360809]
[1754441247051,1.89955288,113890.0,113880.0,0.2502609]
[1754441247250,1.65461269,113890.0,113880.0,0.2488509]
[1754441247458,1.65461269,113890.0,113880.0,0.2980109]
[1754441249151,1.83022819,113890.0,113880.0,0.2980109]
[1754441250554,1.5253355,113890.0,113880.0,0.2980109]
[1754441250754,1.83022819,113890.0,113880.0,0.2980109]
[1754441251951,1.83022819,113890.0,113880.0,0.38528]
[1754441252146,1.5253355,113890.0,113880.0,0.38528]
[1754441252352,1.5253355,113890.0,113880.0,0.5609109]
[1754441252554,1.83022819,113890.0,113880.0,0.5609109]
[1754441254154,1.83022819,113890.0,113880.0,0.5619109]
[1754441255161,1.82822819,113890.0,113880.0,0.5619109]
[1754441255956,1.20210819,113890.0,113880.0,0.5619109]
[1754441256162,1.82862819,113890.0,113880.0,0.5619109]
[1754441256748,1.82862819,113890.0,113880.0,0.5599109]
[1754441257060,1.83062819,113890.0,113880.0,0.5599109]
[1754441257762,1.65501269,113890.0,113880.0,0.5599109]
[1754441258365,1.65301269,113890.0,113880.0,0.5599109]
[1754441258660,1.65301269,113890.0,113880.0,0.5609109]
[1754441259462,1.82862819,113890.0,113880.0,0.5609109]
[1754441260561,1.20210819,113890.0,113880.0,0.5609109]
[1754441260756,1.65217269,113890.0,113880.0,0.5609109]
[1754441261255,1.82778819,113890.0,113880.0,0.5609109]
[1754441261662,1.20210819,113890.0,113880.0,0.5609109]
[1754441261864,1.82762819,113890.0,113880.0,0.5609109]
[1754441262360,1.20210819,113890.0,113880.0,0.5609109]
[1754441262659,1.82714819,113890.0,113880.0,0.5609109]
[1754441266761,1.02649269,113890.0,113880.0,0.5609109]
[1754441266961,1.65069269,113890.0,113880.0,0.5609109]
[1754441267364,1.02649269,113890.0,113880.0,0.5609109]
[1754441267568,1.34572,113890.0,113880.0,0.5609109]
[1754441268070,0.98492,113890.0,113880.0,0.5609109]
[1754441268466,1.76479851,113900.0,113890.0,0.3073198]
[1754441268467,0.66569269,113900.0,113890.0,0.3073198]
[1754441268768,1.28957269,113900.0,113890.0,0.3833772]
[1754441268969,0.66569269,113900.0,113890.0,0.3833772]
[1754441269162,1.28997269,113900.0,113890.0,0.3833772]
[1754441269668,0.3608,113900.0,113890.0,0.3833772]
[1754441269874,0.98504,113900.0,113890.0,0.3833772]
[1754441271170,1.28965269,113900.0,113890.0,0.3833772]
[1754441271573,0.66569269,113900.0,113890.0,0.3833772]
[1754441271762,0.66569269,113900.0,113890.0,0.3843772]
[1754441271959,1.28969269,113900.0,113890.0,0.3843772]
[1754441272470,1.28961269,113900.0,113890.0,0.3843772]
[1754441272972,1.28949269,113900.0,113890.0,0.3843772]
[1754441273370,0.66569269,113900.0,113890.0,0.3843772]
[1754441273566,1.28949269,113900.0,113890.0,0.3843772]
[1754441274173,2.79141269,113900.0,113890.0,0.3843772]
[1754441274373,2.48652,113900.0,113890.0,0.3843772]
[1754441274574,2.78941269,113900.0,113890.0,0.3843772]
[1754441274874,2.78941269,113900.0,113890.0,0.3853772]
[1754441275176,2.16569269,113900.0,113890.0,0.3853772]
[1754441275375,1.28933269,113900.0,113890.0,0.3853772]
[1754441275566,0.98444,113900.0,113890.0,0.3853772]
[1754441275768,1.28933269,113900.0,113890.0,0.3853772]
[1754441276067,2.78933269,113900.0,113890.0,0.3853772]
[1754441276276,2.16569269,113900.0,113890.0,0.3853772]
[1754441276476,2.78933269,113900.0,113890.0,0.3853772]
[1754441276973,2.78933269,113900.0,113890.0,0.3833772]
[1754441277174,2.78933269,113900.0,113890.0,0.3843772]
[1754441277666,2.78905269,113900.0,113890.0,0.3843772]
[1754441278273,2.16569269,113900.0,113890.0,0.3843772]
[1754441278471,2.78885269,113900.0,113890.0,0.6472772]
[1754441279068,2.16569269,113900.0,113890.0,0.6472772]
[1754441279274,2.78873269,113900.0,113890.0,0.6472772]
[1754441279470,2.96433279,113900.0,113890.0,0.4395155]
[1754441279974,2.34129279,113900.0,113890.0,0.4395155]
[1754441280375,2.96417279,113900.0,113890.0,0.4395155]
[1754441280576,2.96417279,113900.0,113890.0,0.4635955]
[1754441280776,2.96617279,113900.0,113890.0,0.4635955]
[1754441280979,2.96617279,113900.0,113890.0,0.4625955]
[1754441284767,2.6612801,113900.0,113890.0,0.4625955]
[1754441284972,2.96617279,113900.0,113890.0,0.4625955]
[1754441288278,2.96497279,113900.0,113890.0,0.4625955]
[1754441288476,2.96497279,113900.0,113890.0,0.5230955]
[1754441288781,2.96497279,113900.0,113890.0,0.5589055]